Workbook

Sheet LISTE
A1: LISTE DES COMPTES À RECEVOIR | E1: TOTAL: | F1: =SUM(F5:F714) -> 3851.68
A4: CLIENT | B4: FACTURE | C4: DATE | D4: MONTANT | E4: PAYÉ | F4: SOLDE
A5: ADFADF | B5: 1275 | C5: 2017-01-01 | D5: 689.85 | F5: =IF(D5>0,D5-E5,"") -> 689.85
A6: ddd | B6: 1269 | C6: 2017-01-01 | D6: 919.8 | E6: 919.8 | F6: =IF(D6>0,D6-E6,"") -> 0
A7: ccc | B7: 1270 | C7: 2017-01-01 | D7: 977.29 | F7: =IF(D7>0,D7-E7,"") -> 977.29
A8: eee | B8: 1271 | C8: 2017-01-01 | D8: 1149.75 | E8: 1149.75 | F8: 0
A9: ADFDFDFD | B9: 1276 | C9: 2017-01-01 | D9: 574.88 | F9: =IF(D9>0,D9-E9,"") -> 574.88
A10: DFDF | B10: 1277 | C10: 2017-01-01 | D10: 1034.78 | F10: 1034.78
A11: ffdd | B11: 1278 | C11: 2017-01-01 | D11: 574.88 | F11: 574.88
F69: =IF(D69>0,D69-E69,"") -> 
F133: =IF(D133>0,D133-E133,"") -> 
F197: =IF(D197>0,D197-E197,"") -> 
F261: =IF(D261>0,D261-E261,"") -> 
F325: =IF(D325>0,D325-E325,"") -> 
F389: =IF(D389>0,D389-E389,"") -> 
F453: =IF(D453>0,D453-E453,"") -> 
F517: =IF(D517>0,D517-E517,"") -> 
F581: =IF(D581>0,D581-E581,"") -> 
F645: =IF(D645>0,D645-E645,"") -> 
F681: =IF(D681>0,D681-E681,"") -> 
F709: =IF(D709>0,D709-E709,"") -> 
F773: =IF(D773>0,D773-E773,"") -> 

Sheet FACTURE
B2: FACTURE
A5: RBQ:
A7: adresse | B7: Numéro : | C7: 1279
A8: ville
A9: code postal | B9: Date : | C9: 2017-04-01
A13: CLIENT | B13: POUR :
A15: abc
A20: DESCRIPTION | C20: MONTANT
C22: 700
B56: SOUS-TOTAL | C56: =SUM(C21:C55) -> 700
B57: TPS | C57: =+C56*0.05 -> 35
B58: TVQ | C58: =+C56*0.09975 -> 69.825
B59: TOTAL | C59: =SUM(C56:C58) -> 804.825
B60: DÉPÔT
B61: BALANCE | C61: =+C59-C60 -> 804.825

Sheet 1278
B2: FACTURE
A5: RBQ:
A7: adresse | B7: Numéro : | C7: 1278
A8: ville
A9: code postal | B9: Date : | C9: 2017-01-01
A13: CLIENT | B13: POUR :
A15: ffdd
A20: DESCRIPTION | C20: MONTANT
C23: 500
B56: SOUS-TOTAL | C56: =SUM(C21:C55) -> 500
B57: TPS | C57: =+C56*0.05 -> 25
B58: TVQ | C58: =+C56*0.09975 -> 49.875
B59: TOTAL | C59: =SUM(C56:C58) -> 574.875
B60: DÉPÔT
B61: BALANCE | C61: =+C59-C60 -> 574.875

Sheet 1277
B2: FACTURE
A5: RBQ:
A7: adresse | B7: Numéro : | C7: 1277
A8: ville
A9: code postal | B9: Date : | C9: 2017-01-01
A13: CLIENT | B13: POUR :
A15: DFDF
A20: DESCRIPTION | C20: MONTANT
C23: 900
B56: SOUS-TOTAL | C56: =SUM(C21:C55) -> 900
B57: TPS | C57: =+C56*0.05 -> 45
B58: TVQ | C58: =+C56*0.09975 -> 89.775
B59: TOTAL | C59: =SUM(C56:C58) -> 1034.775
B60: DÉPÔT
B61: BALANCE | C61: =+C59-C60 -> 1034.775

Sheet 1276
B2: FACTURE
A5: RBQ:
A7: adresse | B7: Numéro : | C7: 1276
A8: ville
A9: code postal | B9: Date : | C9: 2017-01-01
A13: CLIENT | B13: POUR :
A15: ADFDFDFD
A20: DESCRIPTION | C20: MONTANT
C23: 500
B56: SOUS-TOTAL | C56: =SUM(C21:C55) -> 500
B57: TPS | C57: =+C56*0.05 -> 25
B58: TVQ | C58: =+C56*0.09975 -> 49.875
B59: TOTAL | C59: =SUM(C56:C58) -> 574.875
B60: DÉPÔT
B61: BALANCE | C61: =+C59-C60 -> 574.875

Sheet 1275
B2: FACTURE
A5: RBQ:
A7: adresse | B7: Numéro : | C7: 1275
A8: ville
A9: code postal | B9: Date : | C9: 2017-01-01
A13: CLIENT | B13: POUR :
A15: ADFADF
A20: DESCRIPTION | C20: MONTANT
C22: 600
B56: SOUS-TOTAL | C56: =SUM(C21:C55) -> 600
B57: TPS | C57: =+C56*0.05 -> 30
B58: TVQ | C58: =+C56*0.09975 -> 59.85
B59: TOTAL | C59: =SUM(C56:C58) -> 689.85
B60: DÉPÔT
B61: BALANCE | C61: =+C59-C60 -> 689.85

Sheet 1274
B2: FACTURE
A5: RBQ:
A7: adresse | B7: Numéro : | C7: 1274
A8: ville
A9: code postal | B9: Date :
A13: CLIENT | B13: POUR :
A20: DESCRIPTION | C20: MONTANT
B56: SOUS-TOTAL | C56: =SUM(C21:C55) -> 0
B57: TPS | C57: =+C56*0.05 -> 0
B58: TVQ | C58: =+C56*0.09975 -> 0
B59: TOTAL | C59: =SUM(C56:C58) -> 0
B60: DÉPÔT
B61: BALANCE | C61: =+C59-C60 -> 0

Sheet 1273
B2: FACTURE
A5: RBQ:
A7: adresse | B7: Numéro : | C7: 1273
A8: ville
A9: code postal | B9: Date :
A13: CLIENT | B13: POUR :
A20: DESCRIPTION | C20: MONTANT
B56: SOUS-TOTAL | C56: =SUM(C21:C55) -> 0
B57: TPS | C57: =+C56*0.05 -> 0
B58: TVQ | C58: =+C56*0.09975 -> 0
B59: TOTAL | C59: =SUM(C56:C58) -> 0
B60: DÉPÔT
B61: BALANCE | C61: =+C59-C60 -> 0

Sheet filtre
B2: CLIENT | C2: FACTURE | D2: DATE | E2: MONTANT | F2: PAYÉ | G2: SOLDE
G3: =">0" -> >0

Sheet 1272
B2: FACTURE
A5: RBQ:
A7: adresse | B7: Numéro : | C7: 1272
A8: ville
A9: code postal | B9: Date :
A13: CLIENT | B13: POUR :
A20: DESCRIPTION | C20: MONTANT
B56: SOUS-TOTAL | C56: =SUM(C21:C55) -> 0
B57: TPS | C57: =+C56*0.05 -> 0
B58: TVQ | C58: =+C56*0.09975 -> 0
B59: TOTAL | C59: =SUM(C56:C58) -> 0
B60: DÉPÔT
B61: BALANCE | C61: =+C59-C60 -> 0

Sheet 1271
B2: FACTURE
A5: RBQ:
A7: adresse | B7: Numéro : | C7: 1271
A8: ville
A9: code postal | B9: Date : | C9: 2017-01-01
A13: CLIENT | B13: POUR :
A15: eee
A20: DESCRIPTION | C20: MONTANT
C23: 1000
B56: SOUS-TOTAL | C56: =SUM(C21:C55) -> 1000
B57: TPS | C57: =+C56*0.05 -> 50
B58: TVQ | C58: =+C56*0.09975 -> 99.75
B59: TOTAL | C59: =SUM(C56:C58) -> 1149.75
B60: DÉPÔT
B61: BALANCE | C61: =+C59-C60 -> 1149.75

Sheet 1270
B2: FACTURE
A5: RBQ:
A7: adresse | B7: Numéro : | C7: 1270
A8: ville
A9: code postal | B9: Date : | C9: 2017-01-01
A13: CLIENT | B13: POUR :
A15: ccc
A20: DESCRIPTION | C20: MONTANT
C23: 850
B56: SOUS-TOTAL | C56: =SUM(C21:C55) -> 850
B57: TPS | C57: =+C56*0.05 -> 42.5
B58: TVQ | C58: =+C56*0.09975 -> 84.7875
B59: TOTAL | C59: =SUM(C56:C58) -> 977.2875
B60: DÉPÔT | C60: 977.29
B61: BALANCE | C61: =+C59-C60 -> -0.0025

Sheet 1269
B2: FACTURE
A5: RBQ:
A7: adresse | B7: Numéro : | C7: 1269
A8: ville
A9: code postal | B9: Date : | C9: 2017-01-01
A13: CLIENT | B13: POUR :
A15: ddd
A20: DESCRIPTION | C20: MONTANT
C22: 800
B56: SOUS-TOTAL | C56: =SUM(C21:C55) -> 800
B57: TPS | C57: =+C56*0.05 -> 40
B58: TVQ | C58: =+C56*0.09975 -> 79.8
B59: TOTAL | C59: =SUM(C56:C58) -> 919.8
B60: DÉPÔT | C60: 919.8
B61: BALANCE | C61: =+C59-C60 -> 0

Sheet 1268
B2: FACTURE
A5: RBQ:
A7: adresse | B7: Numéro : | C7: 1268
A8: ville
A9: code postal | B9: Date : | C9: 2017-01-01
A13: CLIENT | B13: POUR :
A15: abc | B15: def
A20: DESCRIPTION | C20: MONTANT
A22: bla bla | C22: 500
B56: SOUS-TOTAL | C56: =SUM(C21:C55) -> 500
B57: TPS | C57: =+C56*0.05 -> 25
B58: TVQ | C58: =+C56*0.09975 -> 49.875
B59: TOTAL | C59: =SUM(C56:C58) -> 574.875
B60: DÉPÔT
B61: BALANCE | C61: =+C59-C60 -> 574.875
